[Event "Pan-American U20-ch 2023"]
[Site "Volta Redonda"]
[Date "2023.11.07"]
[Round "3.2"]
[White "Castro Salgado, Pablo"]
[Black "Tomiello, Mateus Costamilan"]
[Result "1-0"]
[ECO "D37"]
[WhiteElo "2202"]
[BlackElo "2145"]
[Annotator "RC"]
[PlyCount "93"]
[EventDate "2023.10.31"]
[EventType "swiss"]
[EventCountry "BRA"]
[SourceTitle "playchess.com"]
[Source "ChessBase"]
[SourceQuality "1"]
[TimeControl "5400+30"]

1. d4 {[%emt 0:03:49]} Nf6 {[%emt 0:01:10]} 2. c4 {[%emt 0:00:06]} e6 {[%emt 0:00:29]} 3. Nf3 {[%emt 0:00:06]} d5 {[%emt 0:00:56]} 4. Nc3 {[%emt 0:00:05]} Be7 {[%emt 0:00:56]} 5. Bf4 {[%emt 0:00:07]} O-O {[%emt 0:01:16]} 6. e3 {[%emt 0:00:03]} Nbd7 {[%emt 0:01:51]} 7. c5 {[%emt 0:00:15]} Ne4 {[%emt 0:01:56]} 8. Qc2 {[%emt 0:00:32]} f5 {[%emt 0:05:16]} 9. h4 {[%emt 0:00:27]} c6 {[%emt 0:01:53]} 10. Be2 {[%emt 0:19:10]} b6 {[%emt 0:09:38]} 11. cxb6 {[%emt 0:06:24]} axb6 {[%emt 0:07:44]} 12. g4 {[%emt 0:04:17]} Ndf6 {[%emt 0:23:45]} 13. g5 {[%emt 0:14:21]} Nd7 {[%emt 0:04:53]} 14. Nd2 {[%emt 0:13:24]} Nxd2 {[%emt 0:07:54]} 15. Qxd2 {[%emt 0:00:35]} b5 {[%emt 0:01:35]} 16. Qc2 {[%emt 0:04:50]} Qa5 {[%emt 0:02:59]} 17. O-O {[%emt 0:02:40]} b4 {[%emt 0:03:37]} 18. Nb1 {[%emt 0:01:14]} c5 {[%emt 0:01:20]} 19. dxc5 {[%emt 0:00:22]} Nxc5 {[%emt 0:01:15]} 20. Nd2 {[%emt 0:00:41]} Bd7 {[%emt 0:03:29]} 21. Nb3 {[%emt 0:07:00]} Qb6 {[%emt 0:02:35]} 22. Nxc5 {[%emt 0:00:15]} Bxc5 {[%emt 0:00:41]} 23. Rfc1 {[%emt 0:00:15]} Rfc8 {[%emt 0:00:55]} 24. Qd2 {[%emt 0:00:12]} Bb5 {[%emt 0:03:52]} 25. Bxb5 {[%emt 0:01:02]} Qxb5 {[%emt 0:00:06]} 26. Be5 {[%emt 0:00:11]} Rc6 {[%emt 0:00:59]} 27. b3 {[%emt 0:05:15]} Rac8 {[%emt 0:02:23]} 28. Rc2 {[%emt 0:00:38]} Bd6 {[%emt 0:01:45]} 29. Rxc6 {[%emt 0:00:11]} Qxc6 {[%emt 0:00:17]} 30. Bxd6 {[%emt 0:00:07]} Qxd6 {[%emt 0:00:08]} 31. Rc1 {[%emt 0:00:08]} Rxc1+ {[%emt 0:01:51]} 32. Qxc1 {[%emt 0:00:04]} d4 {[%emt 0:01:12]} 33. exd4 {[%emt 0:10:14]} Qxd4 {[%emt 0:00:40]} 34. h5 {[%emt 0:00:34]} Qg4+ {[%emt 0:01:44]} 35. Kf1 {[%emt 0:00:05]} Qh3+ {[%emt 0:00:33]} 36. Kg1 {[%emt 0:00:07]} Qxh5 {[%emt 0:01:50]} 37. Qc8+ {[%emt 0:00:05]} Kf7 {[%emt 0:00:05]} 38. Qd7+ {[%emt 0:00:05]} Kf8 {[%emt 0:00:49]} 39. Qd6+ {[%emt 0:00:12]} Kf7 {[%emt 0:00:11]} 40. Qd7+ {[%emt 0:00:06]} Kg6 {[%emt 0:01:04]} 41. Qxe6+ {[%emt 0:05:27]} Kxg5 {[%emt 0:00:06]} 42. Qe7+ {[%emt 0:02:21]} Kg4 {[%emt 0:01:40]} 43. Qxb4+ {[%emt 0:00:06]} f4 {[%emt 0:01:00]} 44. Qe4 {[%emt 0:00:12]} Qa5 {[%emt 0:01:15]} 45. a4 {[%emt 0:00:51]} h5 {[%emt 0:00:42]} 46. Kg2 {[%emt 0:00:46]} g5 {[%emt 0:00:31]} 47. b4 {[%emt 0:02:11]} 1-0

[Event "Pan-American U20-ch 2023"]
[Site "Volta Redonda"]
[Date "2023.11.07"]
[Round "3.3"]
[White "Flores Quillas, Diego Saul Rodri"]
[Black "Varillas Jimenez, Ivan"]
[Result "1/2-1/2"]
[ECO "C68"]
[WhiteElo "2369"]
[BlackElo "1985"]
[Annotator "RC"]
[PlyCount "64"]
[EventDate "2023.10.31"]
[EventType "swiss"]
[EventCountry "BRA"]
[SourceTitle "playchess.com"]
[Source "ChessBase"]
[SourceQuality "1"]
[TimeControl "5400+30"]

1. e4 {[%emt 0:09:27]} e5 {[%emt 0:01:06]} 2. Nf3 {[%emt 0:00:05]} Nc6 {[%emt 0:00:08]} 3. Bb5 {[%emt 0:00:03]} a6 {[%emt 0:00:18]} 4. Bxc6 {[%emt 0:00:18]} dxc6 {[%emt 0:00:05]} 5. Nc3 {[%emt 0:00:03]} f6 {[%emt 0:15:04]} 6. d4 {[%emt 0:00:05]} exd4 {[%emt 0:02:05]} 7. Qxd4 {[%emt 0:00:02]} Qxd4 {[%emt 0:01:40]} 8. Nxd4 {[%emt 0:00:02]} Bd7 {[%emt 0:00:41]} 9. Be3 {[%emt 0:00:06]} O-O-O {[%emt 0:00:35]} 10. h4 {[%emt 0:00:30]} Bd6 {[%emt 0:15:39]} 11. h5 {[%emt 0:01:34]} Ne7 {[%emt 0:00:31]} 12. O-O-O {[%emt 0:02:55]} f5 {[%emt 0:02:03]} 13. f3 {[%emt 0:00:10]} h6 {[%emt 0:02:18]} 14. Nde2 {[%emt 0:01:53]} fxe4 {[%emt 0:06:54]} 15. Nxe4 {[%emt 0:00:08]} Be5 {[%emt 0:00:45]} 16. Bd4 {[%emt 0:01:35]} Bxd4 {[%emt 0:01:21]} 17. Nxd4 {[%emt 0:00:03]} b6 {[%emt 0:01:29]} 18. Rhe1 {[%emt 0:08:06]} c5 {[%emt 0:09:36]} 19. Ne2 {[%emt 1:12:55]} Rhf8 {[%emt 0:04:17]} 20. N2g3 {[%emt 0:00:00]} Rde8 {[%emt 0:03:14]} 21. Rh1 {[%emt 0:00:00]} Bc6 {[%emt 0:01:27]} 22. Rh4 {[%emt 0:00:00]} Nd5 {[%emt 0:04:19]} 23. Rd2 {[%emt 0:00:00]} Nf4 {[%emt 0:03:04]} 24. Rf2 {[%emt 0:00:00]} Re5 {[%emt 0:01:20]} 25. Kd2 {[%emt 0:00:00]} Be8 {[%emt 0:00:36]} 26. Ke3 {[%emt 0:00:00]} Nxh5 {[%emt 0:02:39]} 27. f4 {[%emt 0:00:00]} Rd5 {[%emt 0:01:01]} 28. Nxh5 {[%emt 0:00:00]} Rxh5 {[%emt 0:01:57]} 29. Rxh5 {[%emt 0:00:00]} Bxh5 {[%emt 0:00:05]} 30. f5 {[%emt 0:00:00]} Be8 {[%emt 0:02:31]} 31. g4 {[%emt 0:00:00]} Bc6 {[%emt 0:01:18]} 32. Ng3 {[%emt 0:00:00]} Be8 {[%emt 0:06:08]} 1/2-1/2

[Event "Pan-American U20-ch 2023"]
[Site "Volta Redonda"]
[Date "2023.11.07"]
[Round "3.4"]
[White "Ibarra, Juan Martin"]
[Black "Vazquez, Facundo"]
[Result "1-0"]
[ECO "B62"]
[WhiteElo "2219"]
[BlackElo "2407"]
[Annotator "RC"]
[PlyCount "45"]
[EventDate "2023.10.31"]
[EventType "swiss"]
[EventCountry "BRA"]
[SourceTitle "playchess.com"]
[Source "ChessBase"]
[SourceQuality "1"]
[TimeControl "5400+30"]

1. e4 {[%emt 0:04:47]} c5 {[%emt 0:00:11]} 2. Nf3 {[%emt 0:00:20]} d6 {[%emt 0:00:09]} 3. d4 {[%emt 0:01:01]} cxd4 {[%emt 0:00:08]} 4. Nxd4 {[%emt 0:00:08]} Nf6 {[%emt 0:00:07]} 5. Nc3 {[%emt 0:00:03]} Nc6 {[%emt 0:00:12]} 6. Bg5 {[%emt 0:05:42]} e6 {[%emt 0:00:11]} 7. Qd3 {[%emt 0:01:40]} a6 {[%emt 0:05:23]} 8. Nxc6 {[%emt 0:00:56]} bxc6 {[%emt 0:00:20]} 9. O-O-O {[%emt 0:00:14]} Be7 {[%emt 0:03:23]} 10. Qg3 {[%emt 0:03:51]} e5 {[%emt 0:09:24]} 11. Bc4 {[%emt 0:08:25]} Be6 {[%emt 0:03:13]} 12. Bxe6 {[%emt 0:13:10]} fxe6 {[%emt 0:00:03]} 13. Qh3 {[%emt 0:01:03]} Qc8 {[%emt 0:19:01]} 14. Bxf6 {[%emt 0:01:11]} gxf6 {[%emt 0:00:02]} 15. Qh5+ {[%emt 0:05:53]} Kd7 {[%emt 0:08:25]} 16. Na4 {[%emt 0:07:55]} Kc7 {[%emt 0:48:18]} 17. Qf7 {[%emt 0:00:13]} Re8 {[%emt 0:00:00]} 18. Rd3 {[%emt 0:09:06]} Ra7 {[%emt 0:00:00]} 19. Rhd1 {[%emt 0:02:45]} d5 {[%emt 0:00:00]} 20. Rb3 {[%emt 0:06:56]} d4 {[%emt 0:00:00]} 21. Nc5 {[%emt 0:08:15]} Kd6 {[%emt 0:00:00]} 22. Nxe6 {[%emt 0:00:42]} Rd7 {[%emt 0:00:00]} 23. Rb4 {[%emt 0:03:50]} 1-0

[Event "Pan-American U20-ch 2023"]
[Site "Volta Redonda"]
[Date "2023.11.07"]
[Round "3.5"]
[White "Oro, Faustino"]
[Black "Ribeiro, Matheus Mendes Domin"]
[Result "1-0"]
[ECO "D00"]
[WhiteElo "2356"]
[BlackElo "2150"]
[Annotator "RC"]
[PlyCount "111"]
[EventDate "2023.10.31"]
[EventType "swiss"]
[EventCountry "BRA"]
[SourceTitle "playchess.com"]
[Source "ChessBase"]
[SourceQuality "1"]
[TimeControl "5400+30"]

1. d4 {[%emt 0:00:04]} d5 {[%emt 0:13:14]} 2. Nc3 {[%emt 0:00:07]} Nf6 {[%emt 0:01:34]} 3. Bf4 {[%emt 0:00:08]} c5 {[%emt 0:07:28]} 4. e3 {[%emt 0:01:20]} e6 {[%emt 0:03:48]} 5. Nb5 {[%emt 0:00:45]} Na6 {[%emt 0:00:15]} 6. c3 {[%emt 0:02:27]} Be7 {[%emt 0:02:57]} 7. Nf3 {[%emt 0:01:54]} O-O {[%emt 0:01:01]} 8. Be2 {[%emt 0:01:25]} Bd7 {[%emt 0:02:53]} 9. Ne5 {[%emt 0:03:47]} Bxb5 {[%emt 0:07:00]} 10. Bxb5 {[%emt 0:00:10]} Qb6 {[%emt 0:01:12]} 11. Qe2 {[%emt 0:03:21]} Nb8 {[%emt 0:04:20]} 12. O-O {[%emt 0:03:51]} Nc6 {[%emt 0:03:07]} 13. Nxc6 {[%emt 0:01:51]} bxc6 {[%emt 0:00:10]} 14. Bd3 {[%emt 0:00:14]} cxd4 {[%emt 0:03:40]} 15. cxd4 {[%emt 0:06:21]} c5 {[%emt 0:01:56]} 16. dxc5 {[%emt 0:00:33]} Bxc5 {[%emt 0:01:04]} 17. Rfc1 {[%emt 0:00:33]} Bd6 {[%emt 0:01:56]} 18. Bg5 {[%emt 0:03:51]} Rfc8 {[%emt 0:10:27]} 19. Rc2 {[%emt 0:07:56]} Rxc2 {[%emt 0:02:28]} 20. Qxc2 {[%emt 0:01:00]} Qc7 {[%emt 0:04:47]} 21. Qxc7 {[%emt 0:03:56]} Bxc7 {[%emt 0:00:04]} 22. Rc1 {[%emt 0:00:14]} Be5 {[%emt 0:00:30]} 23. b4 {[%emt 0:00:58]} h6 {[%emt 0:00:14]} 24. Bh4 {[%emt 0:00:35]} Kf8 {[%emt 0:09:26]} 25. a4 {[%emt 0:06:43]} Ke8 {[%emt 0:01:15]} 26. Kf1 {[%emt 0:03:57]} g5 {[%emt 0:01:23]} 27. Bg3 {[%emt 0:00:07]} Bxg3 {[%emt 0:00:05]} 28. hxg3 {[%emt 0:00:01]} Kd8 {[%emt 0:01:28]} 29. Ke2 {[%emt 0:09:03]} Rc8 {[%emt 0:01:19]} 30. Rh1 {[%emt 0:02:09]} h5 {[%emt 0:01:02]} 31. Kd2 {[%emt 0:01:01]} Rb8 {[%emt 0:01:52]} 32. b5 {[%emt 0:00:39]} Rc8 {[%emt 0:00:32]} 33. f3 {[%emt 0:08:58]} Rc5 {[%emt 0:01:50]} 34. Rb1 {[%emt 0:03:35]} Kc7 {[%emt 0:00:43]} 35. a5 {[%emt 0:00:31]} Nd7 {[%emt 0:00:42]} 36. f4 {[%emt 0:01:54]} g4 {[%emt 0:00:42]} 37. e4 {[%emt 0:01:19]} dxe4 {[%emt 0:01:21]} 38. Bxe4 {[%emt 0:00:01]} Nf6 {[%emt 0:01:59]} 39. Bd3 {[%emt 0:02:20]} Nd5 {[%emt 0:00:29]} 40. Re1 {[%emt 0:03:40]} Nb4 {[%emt 0:01:21]} 41. Re5 {[%emt 0:05:15]} Kd6 {[%emt 0:01:07]} 42. Rxc5 {[%emt 0:00:19]} Kxc5 {[%emt 0:00:01]} 43. Bh7 {[%emt 0:00:12]} Kd6 {[%emt 0:05:18]} 44. Kc3 {[%emt 0:03:40]} Nd5+ {[%emt 0:00:19]} 45. Kd4 {[%emt 0:00:14]} f6 {[%emt 0:00:39]} 46. Be4 {[%emt 0:03:56]} e5+ {[%emt 0:00:46]} 47. fxe5+ {[%emt 0:00:13]} fxe5+ {[%emt 0:00:01]} 48. Kc4 {[%emt 0:00:12]} Nc7 {[%emt 0:01:27]} 49. Bg6 {[%emt 0:02:41]} Nd5 {[%emt 0:00:24]} 50. Bxh5 {[%emt 0:00:58]} Ne3+ {[%emt 0:00:28]} 51. Kd3 {[%emt 0:00:39]} Nxg2 {[%emt 0:00:50]} 52. Bxg4 {[%emt 0:01:01]} Kc5 {[%emt 0:00:54]} 53. b6 {[%emt 0:00:54]} axb6 {[%emt 0:00:21]} 54. a6 {[%emt 0:00:06]} e4+ {[%emt 0:00:13]} 55. Ke2 {[%emt 0:00:43]} Kc6 {[%emt 0:00:34]} 56. Bc8 {[%emt 0:00:25]} 1-0

[Event "Pan-American U20-ch 2023"]
[Site "Volta Redonda"]
[Date "2023.11.07"]
[Round "3.6"]
[White "Filgueiras, Nathan Felipe"]
[Black "De Siqueira, Luigy Lira"]
[Result "1/2-1/2"]
[ECO "C47"]
[WhiteElo "2331"]
[BlackElo "2179"]
[Annotator "RC"]
[PlyCount "59"]
[EventDate "2023.10.31"]
[EventType "swiss"]
[EventCountry "BRA"]
[SourceTitle "playchess.com"]
[Source "ChessBase"]
[SourceQuality "1"]
[TimeControl "5400+30"]

1. e4 {[%emt 1:31:00]} e5 {[%emt 0:10:21]} 2. Nf3 {[%emt 0:00:00]} Nc6 {[%emt 0:00:17]} 3. Nc3 {[%emt 0:00:00]} Nf6 {[%emt 0:00:10]} 4. Be2 {[%emt 0:00:00]} d5 {[%emt 0:01:16]} 5. exd5 {[%emt 0:00:00]} Nxd5 {[%emt 0:00:03]} 6. O-O {[%emt 0:00:00]} Nxc3 {[%emt 0:01:08]} 7. bxc3 {[%emt 0:00:00]} Bd6 {[%emt 0:00:08]} 8. d4 {[%emt 0:00:00]} exd4 {[%emt 0:01:17]} 9. cxd4 {[%emt 0:00:00]} O-O {[%emt 0:00:27]} 10. Rb1 {[%emt 0:00:00]} h6 {[%emt 0:01:18]} 11. Re1 {[%emt 0:00:00]} Qf6 {[%emt 0:01:25]} 12. Be3 {[%emt 0:00:00]} Rb8 {[%emt 0:09:12]} 13. d5 {[%emt 0:00:00]} Ne5 {[%emt 0:02:33]} 14. Bxa7 {[%emt 0:00:00]} Ra8 {[%emt 0:01:05]} 15. Bd4 {[%emt 0:00:00]} Nxf3+ {[%emt 0:04:59]} 16. Bxf3 {[%emt 0:00:00]} Qg5 {[%emt 0:04:18]} 17. Rb2 {[%emt 0:00:00]} b6 {[%emt 0:04:15]} 18. c4 {[%emt 0:00:00]} Bd7 {[%emt 0:05:21]} 19. g3 {[%emt 0:00:00]} Ra4 {[%emt 0:08:04]} 20. h4 {[%emt 0:00:00]} Qg6 {[%emt 0:03:20]} 21. Bh5 {[%emt 0:00:00]} Qf5 {[%emt 0:01:08]} 22. Be2 {[%emt 0:00:00]} Re8 {[%emt 0:02:41]} 23. Bf1 {[%emt 0:00:00]} Rea8 {[%emt 0:04:30]} 24. Bd3 {[%emt 0:00:00]} Qh3 {[%emt 0:13:14]} 25. Qb1 {[%emt 0:00:00]} Ra3 {[%emt 0:03:13]} 26. Re3 {[%emt 0:02:07]} Qg4 {[%emt 0:01:59]} 27. Re4 {[%emt 0:02:10]} Qh3 {[%emt 0:02:31]} 28. Re3 {[%emt 0:05:28]} Qg4 {[%emt 0:00:08]} 29. Re4 {[%emt 0:00:05]} Qh3 {[%emt 0:00:06]} 30. Re3 {[%emt 0:02:50]} 1/2-1/2

[Event "Pan-American U20-ch 2023"]
[Site "Volta Redonda"]
[Date "2023.11.08"]
[Round "4.1"]
[White "Soriano Quispe, Ivan Excender"]
[Black "Castro Salgado, Pablo"]
[Result "1-0"]
[ECO "A21"]
[WhiteElo "2214"]
[BlackElo "2202"]
[Annotator "RC"]
[PlyCount "133"]
[EventDate "2023.10.31"]
[EventType "swiss"]
[EventCountry "BRA"]
[SourceTitle "playchess.com"]
[Source "ChessBase"]
[SourceQuality "1"]
[TimeControl "5400+30"]

1. c4 {[%emt 0:00:08]} e5 {[%emt 0:00:48]} 2. Nc3 {[%emt 0:00:05]} Bb4 {[%emt 0:00:49]} 3. g3 {[%emt 0:04:16]} Bxc3 {[%emt 0:08:28]} 4. bxc3 {[%emt 0:00:48]} d6 {[%emt 1:22:25]} 5. Bg2 {[%emt 0:00:47]} Nc6 {[%emt 1:22:24]} 6. Rb1 {[%emt 0:03:07]} Nge7 {[%emt 1:22:24]} 7. d3 {[%emt 0:04:50]} O-O {[%emt 0:02:22]} 8. Nf3 {[%emt 0:06:29]} Rb8 {[%emt 0:05:21]} 9. O-O {[%emt 0:01:55]} f5 {[%emt 0:03:09]} 10. d4 {[%emt 0:01:19]} e4 {[%emt 0:17:25]} 11. Nd2 {[%emt 0:00:14]} Na5 {[%emt 0:00:27]} 12. e3 {[%emt 0:10:13]} Be6 {[%emt 0:06:01]} 13. Qe2 {[%emt 0:02:14]} Qd7 {[%emt 0:05:49]} 14. Ba3 {[%emt 0:08:43]} b6 {[%emt 0:04:00]} 15. f3 {[%emt 0:15:15]} exf3 {[%emt 0:00:13]} 16. Bxf3 {[%emt 0:00:02]} c5 {[%emt 0:07:10]} 17. e4 {[%emt 0:18:05]} Rbe8 {[%emt 0:01:44]} 18. Bb2 {[%emt 0:02:23]} Qa4 {[%emt 0:05:38]} 19. d5 {[%emt 0:00:39]} Bf7 {[%emt 0:29:05]} 20. Qd1 {[%emt 0:18:58]} Qd7 {[%emt 0:08:05]} 21. Rf2 {[%emt 0:02:26]} Bg6 {[%emt 0:01:57]} 22. Ra1 {[%emt 0:04:13]} fxe4 {[%emt 0:02:05]} 23. Nxe4 {[%emt 0:00:56]} Nxc4 {[%emt 0:18:49]} 24. Bc1 {[%emt 0:00:02]} Ne5 {[%emt 0:04:12]} 25. Bg2 {[%emt 0:00:25]} Rxf2 {[%emt 0:00:02]} 26. Nxf2 {[%emt 0:00:30]} Nf5 {[%emt 0:00:40]} 27. Bf4 {[%emt 0:01:05]} Nc4 {[%emt 0:00:54]} 28. Bh3 {[%emt 0:00:13]} Qe7 {[%emt 0:01:29]} 29. Qf3 {[%emt 0:00:32]} h6 {[%emt 0:04:15]} 30. Bf1 {[%emt 0:02:43]} Ne5 {[%emt 0:00:29]} 31. Qd1 {[%emt 0:00:05]} Qf7 {[%emt 0:00:46]} 32. Bb5 {[%emt 0:00:34]} Re7 {[%emt 0:00:16]} 33. Be2 {[%emt 0:00:21]} Kh7 {[%emt 0:01:26]} 34. Rc1 {[%emt 0:00:22]} Qe8 {[%emt 0:01:49]} 35. Ra1 {[%emt 0:02:27]} Nf7 {[%emt 0:01:45]} 36. Bd3 {[%emt 0:00:42]} Ne5 {[%emt 0:00:01]} 37. Be2 {[%emt 0:00:04]} Qf7 {[%emt 0:01:43]} 38. Qd2 {[%emt 0:02:18]} b5 {[%emt 0:03:22]} 39. Rf1 {[%emt 0:00:33]} Qe8 {[%emt 0:00:33]} 40. Qc1 {[%emt 0:01:51]} a6 {[%emt 0:00:16]} 41. a3 {[%emt 0:01:27]} Qa8 {[%emt 0:00:36]} 42. Qd1 {[%emt 0:00:21]} Qd8 {[%emt 0:00:38]} 43. h4 {[%emt 0:00:32]} Kh8 {[%emt 0:01:44]} 44. Qc1 {[%emt 0:01:02]} Bh7 {[%emt 0:00:35]} 45. h5 {[%emt 0:00:41]} Nc4 {[%emt 0:00:37]} 46. Bf3 {[%emt 0:01:01]} Ne5 {[%emt 0:00:33]} 47. Be2 {[%emt 0:00:01]} Nc4 {[%emt 0:00:05]} 48. Bf3 {[%emt 0:00:02]} Nfe3 {[%emt 0:00:38]} 49. Re1 {[%emt 0:00:08]} Nc2 {[%emt 0:00:12]} 50. Re6 {[%emt 0:00:53]} Rxe6 {[%emt 0:01:19]} 51. dxe6 {[%emt 0:00:02]} Qe7 {[%emt 0:00:42]} 52. Bg4 {[%emt 0:00:02]} N2xa3 {[%emt 0:00:16]} 53. Qd1 {[%emt 0:00:21]} a5 {[%emt 0:00:41]} 54. Qd5 {[%emt 0:01:13]} b4 {[%emt 0:00:18]} 55. cxb4 {[%emt 0:00:04]} axb4 {[%emt 0:00:14]} 56. Qc6 {[%emt 0:01:41]} Qf6 {[%emt 0:01:19]} 57. Qe8+ {[%emt 0:01:12]} Bg8 {[%emt 0:00:05]} 58. e7 {[%emt 0:00:32]} b3 {[%emt 0:00:50]} 59. Qxg8+ {[%emt 0:00:25]} Kxg8 {[%emt 0:01:07]} 60. e8=Q+ {[%emt 0:00:03]} Kh7 {[%emt 0:00:00]} 61. Ne4 {[%emt 0:01:17]} Qa1+ {[%emt 0:00:18]} 62. Kh2 {[%emt 0:00:09]} Qb2+ {[%emt 0:00:20]} 63. Kh3 {[%emt 0:00:19]} Ne3 {[%emt 0:00:13]} 64. Bxe3 {[%emt 0:00:23]} Qe5 {[%emt 0:00:04]} 65. Qg6+ {[%emt 0:00:28]} Kg8 {[%emt 0:00:11]} 66. Be6+ {[%emt 0:00:07]} Kh8 {[%emt 0:00:06]} 67. Qe8+ {[%emt 0:00:06]} 1-0

[Event "Pan-American U20-ch 2023"]
[Site "Volta Redonda"]
[Date "2023.11.08"]
[Round "4.2"]
[White "Varillas Jimenez, Ivan"]
[Black "Oro, Faustino"]
[Result "0-1"]
[ECO "B40"]
[WhiteElo "1985"]
[BlackElo "2356"]
[Annotator "RC"]
[PlyCount "70"]
[EventDate "2023.10.31"]
[EventType "swiss"]
[EventCountry "BRA"]
[SourceTitle "playchess.com"]
[Source "ChessBase"]
[SourceQuality "1"]
[TimeControl "5400+30"]

1. e4 {[%emt 0:03:23]} c5 {[%emt 0:00:09]} 2. Nf3 {[%emt 0:00:28]} e6 {[%emt 0:00:07]} 3. d4 {[%emt 0:00:49]} cxd4 {[%emt 0:00:07]} 4. Nxd4 {[%emt 0:00:04]} Bc5 {[%emt 0:00:07]} 5. Nb3 {[%emt 0:04:08]} Bb6 {[%emt 0:00:26]} 6. Nc3 {[%emt 0:01:48]} Ne7 {[%emt 0:00:19]} 7. Qf3 {[%emt 0:03:15]} O-O {[%emt 0:00:55]} 8. Be3 {[%emt 0:00:42]} f5 {[%emt 0:02:28]} 9. O-O-O {[%emt 0:09:02]} Nbc6 {[%emt 0:02:27]} 10. Qe2 {[%emt 0:03:47]} fxe4 {[%emt 0:04:30]} 11. Nxe4 {[%emt 0:05:11]} d5 {[%emt 0:00:26]} 12. Nc3 {[%emt 0:18:29]} e5 {[%emt 0:07:34]} 13. Bxb6 {[%emt 0:08:32]} axb6 {[%emt 0:00:46]} 14. a3 {[%emt 0:08:22]} Be6 {[%emt 0:02:53]} 15. g3 {[%emt 0:01:24]} d4 {[%emt 0:02:40]} 16. Ne4 {[%emt 0:01:23]} Qc8 {[%emt 0:01:17]} 17. Kb1 {[%emt 0:04:07]} Bd5 {[%emt 0:02:34]} 18. Bg2 {[%emt 0:00:46]} Qf5 {[%emt 0:01:19]} 19. Rhf1 {[%emt 0:01:54]} Rad8 {[%emt 0:01:10]} 20. Nc1 {[%emt 0:10:27]} Na5 {[%emt 0:02:45]} 21. Nd3 {[%emt 0:00:18]} Nec6 {[%emt 0:01:59]} 22. b3 {[%emt 0:04:57]} Rfe8 {[%emt 0:01:43]} 23. Rfe1 {[%emt 0:00:43]} Qf8 {[%emt 0:01:05]} 24. Kb2 {[%emt 0:00:38]} Ra8 {[%emt 0:02:31]} 25. Ra1 {[%emt 0:00:10]} Kh8 {[%emt 1:00:43]} 26. Bh1 {[%emt 0:01:42]} Bg8 {[%emt 0:00:00]} 27. Nd2 {[%emt 0:00:38]} b5 {[%emt 0:00:00]} 28. Qh5 {[%emt 0:01:02]} Bf7 {[%emt 0:00:00]} 29. Qg5 {[%emt 0:01:29]} Qd6 {[%emt 0:00:00]} 30. f4 {[%emt 0:00:29]} Qc7 {[%emt 0:00:00]} 31. Ne4 {[%emt 0:02:23]} Rac8 {[%emt 0:00:00]} 32. Rac1 {[%emt 0:00:34]} Nc4+ {[%emt 0:00:00]} 33. bxc4 {[%emt 0:03:12]} bxc4 {[%emt 0:00:00]} 34. Nb4 {[%emt 0:00:37]} Nxb4 {[%emt 0:00:00]} 35. axb4 {[%emt 0:00:23]} c3+ {[%emt 0:00:00]} 0-1

[Event "Pan-American U20-ch 2023"]
[Site "Volta Redonda"]
[Date "2023.11.08"]
[Round "4.3"]
[White "Filgueiras, Nathan Felipe"]
[Black "Ibarra, Juan Martin"]
[Result "1/2-1/2"]
[ECO "B12"]
[WhiteElo "2331"]
[BlackElo "2219"]
[Annotator "RC"]
[PlyCount "108"]
[EventDate "2023.10.31"]
[EventType "swiss"]
[EventCountry "BRA"]
[SourceTitle "playchess.com"]
[Source "ChessBase"]
[SourceQuality "1"]
[TimeControl "5400+30"]

1. e4 {[%emt 0:04:46]} c6 {[%emt 0:00:47]} 2. d4 {[%emt 0:03:38]} d5 {[%emt 0:00:26]} 3. e5 {[%emt 0:00:09]} Bf5 {[%emt 0:00:41]} 4. Nf3 {[%emt 0:00:45]} e6 {[%emt 0:00:10]} 5. Be2 {[%emt 0:00:05]} c5 {[%emt 0:00:08]} 6. Be3 {[%emt 0:01:12]} Qb6 {[%emt 0:00:11]} 7. Nc3 {[%emt 0:15:12]} Nc6 {[%emt 0:00:25]} 8. Rb1 {[%emt 0:06:18]} Bg4 {[%emt 0:21:40]} 9. Bb5 {[%emt 0:29:31]} Bxf3 {[%emt 0:04:26]} 10. gxf3 {[%emt 0:01:28]} cxd4 {[%emt 0:00:33]} 11. Qxd4 {[%emt 0:03:27]} Qxd4 {[%emt 0:00:57]} 12. Bxd4 {[%emt 0:00:09]} Nge7 {[%emt 0:01:47]} 13. Ne2 {[%emt 0:02:29]} Nf5 {[%emt 0:03:05]} 14. c3 {[%emt 0:01:38]} Be7 {[%emt 0:00:37]} 15. f4 {[%emt 0:05:53]} O-O {[%emt 0:02:48]} 16. O-O {[%emt 0:03:57]} Rac8 {[%emt 0:03:27]} 17. Be3 {[%emt 0:02:26]} f6 {[%emt 0:09:46]} 18. exf6 {[%emt 0:00:04]} Rxf6 {[%emt 0:03:58]} 19. Rbd1 {[%emt 0:01:28]} Nd6 {[%emt 0:19:06]} 20. Bd3 {[%emt 0:00:54]} a6 {[%emt 0:03:43]} 21. Rfe1 {[%emt 0:02:03]} Nf5 {[%emt 0:04:31]} 22. Ng3 {[%emt 0:02:11]} Nxe3 {[%emt 0:00:20]} 23. fxe3 {[%emt 0:00:13]} Bc5 {[%emt 0:00:52]} 24. Kg2 {[%emt 0:00:32]} Rcf8 {[%emt 0:02:16]} 25. Bc2 {[%emt 0:01:22]} g6 {[%emt 0:02:24]} 26. b4 {[%emt 0:01:56]} Ba7 {[%emt 0:00:32]} 27. Bb3 {[%emt 0:00:06]} Rc8 {[%emt 0:01:10]} 28. e4 {[%emt 0:01:47]} Ne7 {[%emt 0:03:25]} 29. exd5 {[%emt 0:01:11]} Nxd5 {[%emt 0:00:01]} 30. Bxd5 {[%emt 0:00:33]} exd5 {[%emt 0:00:00]} 31. Rxd5 {[%emt 0:00:16]} Rf7 {[%emt 0:01:58]} 32. Ne4 {[%emt 0:01:22]} Bb8 {[%emt 0:01:51]} 33. Ng5 {[%emt 0:01:45]} Rxf4 {[%emt 0:00:24]} 34. Re7 {[%emt 0:00:51]} Rcf8 {[%emt 0:00:58]} 35. Ne4 {[%emt 0:01:31]} Rg4+ {[%emt 0:04:13]} 36. Ng3 {[%emt 0:00:04]} Rgf4 {[%emt 0:01:52]} 37. Rdd7 {[%emt 0:00:34]} Rf2+ {[%emt 0:00:20]} 38. Kh3 {[%emt 0:00:17]} R8f7 {[%emt 0:01:43]} 39. Rxb7 {[%emt 0:00:08]} Rxe7 {[%emt 0:00:18]} 40. Rxe7 {[%emt 0:00:05]} Bxg3 {[%emt 0:00:09]} 41. hxg3 {[%emt 0:00:43]} Rxa2 {[%emt 0:00:01]} 42. c4 {[%emt 0:01:07]} Rc2 {[%emt 0:01:46]} 43. c5 {[%emt 0:00:19]} Rc4 {[%emt 0:00:29]} 44. Rb7 {[%emt 0:00:51]} g5 {[%emt 0:00:20]} 45. g4 {[%emt 0:01:59]} h6 {[%emt 0:00:44]} 46. Kg3 {[%emt 0:00:11]} Kf8 {[%emt 0:00:17]} 47. Kf3 {[%emt 0:00:32]} Ke8 {[%emt 0:00:32]} 48. Rb6 {[%emt 0:01:19]} Kd7 {[%emt 0:00:49]} 49. Rd6+ {[%emt 0:01:14]} Kc7 {[%emt 0:00:25]} 50. Rxa6 {[%emt 0:01:56]} Rxb4 {[%emt 0:00:06]} 51. Rxh6 {[%emt 0:00:05]} Rf4+ {[%emt 0:00:11]} 52. Kg3 {[%emt 0:00:05]} Rc4 {[%emt 0:00:06]} 53. Kf3 {[%emt 0:01:04]} Rf4+ {[%emt 0:00:11]} 54. Kg3 {[%emt 0:00:09]} Rc4 {[%emt 0:03:35]} 1/2-1/2